bitfinex/quotes_SOLUSD_20250129
["timestamp","ask_amount","ask_price","bid_price","bid_amount"]
[1738178739599,0.45824955,222.87,222.83,11.0183]
[1738178739802,0.45824955,222.89,222.83,6.5307]
[1738178740002,0.45824955,222.89,222.83,11.0183]
[1738178740229,0.45824955,222.87,222.83,11.0183]
[1738178740431,0.45824955,222.87,222.83,6.5307]
[1738178740727,34.27678187,222.84,222.77,34.27678187]
[1738178740911,34.27678187,222.82,222.75,0.2]
[1738178741227,0.45824955,222.79,222.75,0.2]
[1738178741429,0.45824955,222.77,222.75,0.2]
[1738178741640,0.45824955,222.77,222.76,1.0]
[1738178741837,0.84179127,222.87,222.83,1.0]
[1738178742023,0.84179127,222.87,222.83,34.27678187]
[1738178742335,34.27678187,222.98,222.85,34.27678187]
[1738178742638,34.27678187,222.96,222.87,34.27678187]
[1738178742820,34.27678187,223.0,222.91,34.27678187]
[1738178743015,34.27678187,222.98,222.89,34.27678187]
[1738178743218,0.84118799,222.97,222.92,34.27678187]
[1738178743418,0.84104765,223.01,222.89,1.0]
[1738178743729,0.84112892,223.06,222.9,1.0]
[1738178743938,1.1204,223.13,222.91,4.4861]
[1738178744138,1.0,223.07,222.84,4.4875]
[1738178744321,0.50196,223.05,222.84,4.4875]
[1738178744531,0.84118757,223.04,222.85,23.776884]
[1738178744857,34.27678187,222.96,222.86,34.27678187]
[1738178745024,34.27678187,222.98,222.88,34.27678187]
[1738178745231,0.12549,223.03,222.84,15.7063]
[1738178745232,34.27678187,222.94,222.84,49.98308187]
[1738178745527,34.27678187,222.92,222.84,4.4875]
[1738178745727,34.27678187,222.94,222.84,38.76428187]
[1738178745936,0.84115681,222.99,222.9,34.27678187]
[1738178746243,34.27678187,223.02,222.93,23.776884]
[1738178746416,34.27678187,223.08,222.98,34.27678187]
[1738178746616,0.84062119,223.07,222.98,34.27678187]
[1738178747020,34.27678187,223.06,222.98,34.27678187]
[1738178747219,0.84076989,223.05,222.98,34.27678187]
[1738178747432,34.27678187,223.03,222.94,34.27678187]
[1738178747631,0.84076806,223.07,222.96,34.27678187]
[1738178747632,34.27678187,223.05,222.96,34.27678187]
[1738178747832,34.27678187,223.07,222.99,4.4845]
[1738178748027,34.27678187,223.14,223.05,34.27678187]
[1738178748229,0.84055797,223.13,223.05,34.27678187]
[1738178748430,34.27678187,223.09,222.98,34.27678187]
[1738178748633,0.84086236,223.08,222.97,4.4848]
[1738178748835,34.27678187,223.12,223.02,34.27678187]
[1738178749014,0.84066146,223.11,223.04,34.27678187]
[1738178749626,34.27678187,223.09,223.0,34.27678187]
[1738178749919,1.28892647,223.08,223.0,34.27678187]
[1738178750441,0.84072647,223.08,223.02,34.27678187]
[1738178750622,0.84072647,223.08,223.04,34.27678187]
[1738178750823,0.8406323,223.11,223.04,34.27678187]
[1738178751231,0.8406323,223.11,223.06,34.27678187]
[1738178751549,34.40227187,223.14,223.04,34.27678187]
[1738178751715,0.84054326,223.13,223.06,34.27678187]
[1738178752240,0.84054326,223.13,223.05,4.4832]
[1738178752241,34.27678187,223.11,223.02,34.27678187]
[1738178752444,34.40227187,223.09,223.0,34.27678187]
[1738178752617,0.84074367,223.08,222.99,34.27678187]
[1738178753949,34.40227187,223.07,222.99,34.27678187]
[1738178754128,0.12549,223.05,222.99,34.27678187]
[1738178754320,0.12549,223.03,222.97,34.27678187]
[1738178754530,0.12549,223.01,222.95,34.27678187]
[1738178754860,0.84103542,223.03,222.95,34.27678187]
[1738178755017,0.84103542,223.03,222.97,34.27678187]
[1738178755922,0.57379,223.02,222.97,34.27678187]
[1738178756125,34.40227187,223.0,222.91,34.27678187]
[1738178756329,0.12549,222.98,222.91,34.27678187]
[1738178756528,0.84116796,222.97,222.91,34.27678187]
[1738178756961,0.12549,222.96,222.91,34.27678187]
[1738178757263,34.27678187,223.0,222.91,34.27678187]
[1738178757264,0.8411936,222.95,222.91,34.27678187]
[1738178757592,0.84114762,222.99,222.91,34.27678187]
[1738178757762,0.12549,222.97,222.89,34.27678187]
[1738178758072,0.4485,222.95,222.89,34.27678187]
[1738178758386,1.28956036,222.97,222.91,34.27678187]
[1738178758586,1.31956036,222.97,222.91,34.27678187]
[1738178758972,0.87116036,222.97,222.91,34.27678187]
[1738178759174,1.31956036,222.97,222.91,34.27678187]
[1738178759507,1.31956036,222.97,222.95,34.27678187]
[1738178759508,0.03,222.97,222.95,34.27678187]
[1738178759875,0.8373657,223.12,223.0,1.0]
[1738178760189,34.27678187,223.12,223.03,34.27678187]
[1738178760396,34.27678187,223.12,222.99,1.0]
[1738178760397,34.27678187,223.08,222.99,34.27678187]
[1738178760704,34.27678187,223.06,222.95,34.27678187]
[1738178760874,34.27678187,223.06,222.89,15.7024]
[1738178760875,0.12549,223.01,222.93,34.27678187]
[1738178761085,0.12549,223.06,222.89,4.4865]
[1738178761086,0.84102651,223.0,222.97,34.27678187]
[1738178761293,0.84091391,223.13,223.0,1.0]
[1738178761594,0.84091391,223.13,223.07,34.27678187]
[1738178761793,0.84049466,223.15,223.11,34.27678187]
[1738178761999,0.84049466,223.15,223.09,34.27678187]
[1738178762199,0.12549,223.14,223.05,34.27678187]
[1738178762371,0.12549,223.12,223.05,34.27678187]
[1738178762575,0.8406291,223.13,223.03,4.4836]
[1738178762576,0.84056939,223.14,223.07,34.27678187]
[1738178763187,0.25098,223.11,223.03,34.27678187]
[1738178763383,0.25098,223.09,223.01,34.27678187]
[1738178763608,0.12549,223.07,222.99,34.27678187]
[1738178763904,0.83770416,223.09,223.03,34.27678187]
[1738178764107,0.84063253,223.11,223.05,34.27678187]
[1738178764320,0.84053881,223.14,223.07,34.27678187]
[1738178764529,0.84053881,223.14,223.09,34.27678187]
[1738178764811,0.84049452,223.19,223.13,34.27678187]
[1738178764985,0.84049452,223.19,223.15,34.27678187]
[1738178765185,0.448,223.21,223.15,34.27678187]
[1738178765419,0.448,223.21,223.11,34.27678187]
[1738178765420,35.11704334,223.2,223.11,34.27678187]
[1738178765621,0.12549,223.11,223.03,34.27678187]
[1738178765922,0.12549,223.11,222.98,6.0278]
[1738178765923,0.37647,223.05,222.98,34.27678187]
[1738178766088,34.85057187,223.06,222.96,34.27678187]
[1738178766089,0.12549,223.03,222.96,34.27678187]
[1738178766287,0.84097155,223.02,222.96,34.27678187]
[1738178766482,0.84085043,223.05,222.98,34.27678187]
[1738178766698,0.84085043,223.05,222.92,1.0]
[1738178766699,0.4482,223.1,223.03,34.27678187]
[1738178766895,0.4481,223.12,223.07,34.27678187]
[1738178767100,0.84056119,223.12,223.07,34.27678187]
[1738178767621,20.25098,223.14,223.07,34.27678187]
[1738178767956,0.84048594,223.11,223.05,34.27678187]
[1738178768235,0.84048594,223.11,223.07,34.27678187]
[1738178768236,0.57369,223.1,223.07,34.27678187]
[1738178768532,0.84062468,223.13,223.07,34.27678187]
[1738178768706,20.25098,223.12,223.05,34.27678187]
[1738178768903,0.12549,223.1,223.03,34.27678187]
[1738178769126,24.153354,223.07,222.97,34.27678187]
[1738178769311,0.84090222,223.06,222.99,34.27678187]
[1738178769513,0.12549,222.98,222.93,34.27678187]
[1738178769717,0.84112045,222.97,222.93,34.27678187]
[1738178769925,0.84105214,223.03,222.96,4.4851]
[1738178770138,0.84105214,223.03,222.98,34.27678187]
[1738178770325,1.28935214,223.03,222.98,34.27678187]
[1738178770926,0.84105214,223.03,223.0,34.27678187]
[1738178771226,0.12549,223.05,223.0,34.27678187]
[1738178771413,0.84085501,223.04,222.98,34.27678187]
[1738178771944,0.84079119,223.07,223.0,34.27678187]
[1738178772127,0.12549,223.06,223.0,34.27678187]
[1738178772442,0.12549,223.09,223.04,34.27678187]
[1738178772443,0.84078858,223.09,223.04,34.27678187]
[1738178772747,34.40227187,223.08,223.0,34.27678187]
[1738178772934,34.27678187,223.02,222.97,0.063]
[1738178773236,1.4482,223.09,222.97,0.063]
[1738178773237,0.84106322,223.01,222.97,0.063]
[1738178773445,0.84093758,223.02,222.97,34.33978187]
[1738178773639,0.84086281,223.06,222.97,34.33978187]
[1738178773818,0.84086281,223.06,222.99,34.27678187]
[1738178774018,0.84078928,223.08,223.03,34.27678187]
[1738178774245,0.86767412,223.11,223.05,34.27678187]
[1738178774424,0.03,223.11,223.07,34.27678187]
[1738178776225,0.03,223.11,223.09,34.27678187]
[1738178776963,0.03,223.11,223.06,34.27678187]
[1738178777452,0.03,223.11,223.08,34.27678187]
[1738178777822,0.03,223.11,223.1,34.27678187]
[1738178778246,0.03,223.11,223.05,40.27258187]
[1738178778550,0.03,223.11,223.07,34.27678187]
[1738178778752,0.03,223.11,223.09,34.27678187]
[1738178780538,0.03,223.11,223.06,34.27678187]
[1738178780738,0.03,223.11,223.1,34.27678187]
[1738178780938,0.03,223.11,223.06,34.27678187]
[1738178781139,0.03,223.11,223.04,34.27678187]
[1738178781363,0.87050843,223.11,223.04,34.27678187]
[1738178781557,0.87050843,223.11,223.02,34.27678187]
[1738178782163,0.87050843,223.11,223.04,34.27678187]
[1738178782367,0.12549,223.05,222.97,0.063]
[1738178782576,34.27678187,223.03,222.97,0.063]
[1738178782738,34.27678187,222.99,222.97,0.063]
[1738178782945,34.27678187,223.01,222.97,0.063]
[1738178783245,34.27678187,222.99,222.97,0.063]
[1738178783458,1.09208352,222.98,222.97,0.063]
[1738178783635,59.39672939,222.98,222.97,0.0001]
[1738178784040,20.0,222.95,222.78,34.27678187]
[1738178784270,34.27678187,222.85,222.76,38.76578187]
[1738178784474,34.27678187,222.81,222.75,0.2]
[1738178784660,34.27678187,222.79,222.75,0.2]
[1738178784974,0.84175296,222.85,222.77,34.27678187]
[1738178785175,35.11820476,222.94,222.84,34.27678187]
[1738178785660,35.11820476,222.94,222.75,51.18928187]
[1738178785661,34.27678187,222.92,222.83,34.27678187]
[1738178788254,34.27678187,223.02,222.93,34.27678187]
[1738178788457,0.8408633,223.01,222.93,34.27678187]
[1738178788644,34.27678187,222.94,222.85,45.36788187]
[1738178788850,34.27678187,223.03,222.93,34.27678187]
[1738178789374,0.8408286,223.02,222.95,34.27678187]
[1738178789569,0.4483,223.06,222.95,34.27678187]
[1738178789570,34.40227187,223.05,222.95,34.27678187]
[1738178789876,34.27678187,223.05,222.95,38.76198187]
[1738178790175,0.03,223.11,223.03,34.27678187]
[1738178790367,0.03,223.11,223.06,34.27678187]
[1738178790571,0.03,223.11,223.04,34.27678187]
[1738178790756,0.03,223.11,223.08,34.27678187]
[1738178791076,0.03,223.11,223.06,34.27678187]
[1738178791377,34.30678187,223.11,223.02,34.27678187]
[1738178791545,0.96616825,223.1,222.95,4.4852]
[1738178791744,0.84067825,223.1,222.95,4.4852]
[1738178792049,1.28887825,223.1,222.93,10.6464]
[1738178792259,34.27678187,223.05,222.96,34.27678187]
[1738178792463,34.27678187,223.09,223.0,34.27678187]
[1738178792653,34.27678187,223.09,222.93,21.8606]
[1738178792654,34.30678187,223.11,223.02,34.27678187]
[1738178792844,34.27678187,223.09,222.98,34.27678187]
[1738178793047,0.03,223.11,223.03,34.27678187]
[1738178793246,0.03,223.11,222.99,43.902374]
[1738178793466,0.03,223.11,223.02,0.12549]
[1738178793864,0.03,223.11,223.04,0.12549]
[1738178794067,0.03,223.11,223.03,15.6929]
[1738178794291,0.03,223.11,223.06,34.27678187]
[1738178794807,0.03,223.11,223.08,34.27678187]
[1738178795177,0.03,223.11,223.1,34.27678187]
[1738178795373,0.03,223.11,223.06,34.27678187]
[1738178796074,0.03,223.11,223.06,38.75968187]
[1738178796469,0.03,223.11,223.02,11.2094]
[1738178796470,34.30678187,223.11,223.02,34.27678187]
[1738178796702,34.30678187,223.11,223.02,38.76058187]
[1738178796904,0.03,223.11,223.06,34.27678187]
[1738178797107,0.03,223.11,223.08,34.27678187]
[1738178797281,0.03,223.11,223.06,34.27678187]
[1738178798292,0.87039995,223.11,223.02,34.27678187]
[1738178798992,34.27678187,223.08,223.0,34.27678187]
[1738178799287,0.8407507,223.07,223.0,34.27678187]
[1738178799492,0.8407507,223.07,222.98,34.27678187]
[1738178799728,0.8407507,223.07,223.0,34.27678187]
[1738178799911,1.28889498,223.09,223.02,34.27678187]
[1738178800115,1.28889498,223.09,222.99,4.4843]
[1738178800116,33.80678187,223.14,223.04,34.27678187]
[1738178800318,0.4481,223.12,222.99,4.4843]
[1738178800515,0.4481,223.12,223.06,34.27678187]
[1738178800829,0.84054745,223.13,223.06,34.27678187]
[1738178801005,34.27678187,223.19,223.08,34.27678187]
[1738178801205,1.28829335,223.18,223.1,34.27678187]
[1738178801533,34.27678187,223.21,223.12,34.27678187]
[1738178801704,0.84019353,223.2,223.12,34.27678187]
[1738178802227,34.72478187,223.21,223.13,4.4816]
[1738178802716,34.72478187,223.21,223.12,38.75858187]
[1738178803031,34.27678187,223.19,223.1,34.27678187]
[1738178803528,34.27678187,223.19,223.04,15.6922]
[1738178803529,0.448,223.21,223.14,34.27678187]
[1738178803823,34.27678187,223.25,223.16,34.27678187]
[1738178804011,34.27678187,223.23,223.14,34.27678187]
[1738178804327,34.27678187,223.17,223.08,35.83688187]
[1738178804524,34.27678187,223.17,223.08,38.75938187]
[1738178804698,34.27678187,223.19,223.1,34.27678187]
[1738178804898,34.27678187,223.23,223.14,34.27678187]
[1738178805093,0.4479,223.24,223.16,34.27678187]
[1738178805423,34.27678187,223.23,223.14,34.27678187]
[1738178805732,34.27678187,223.19,223.12,34.27678187]
[1738178806121,34.72478187,223.21,223.12,38.75858187]
[1738178806321,0.448,223.21,223.14,34.27678187]
[1738178806699,34.27678187,223.25,223.16,34.27678187]
[1738178806901,0.84001204,223.24,223.16,34.27678187]
[1738178807197,34.27678187,223.27,223.18,34.27678187]
[1738178807401,5.17341206,223.43,223.28,1.0]
[1738178807621,0.4476,223.41,223.29,0.67132677]
[1738178807840,0.4777,223.35,223.23,0.67146614]
[1738178808125,0.4777,223.35,223.17,53.26]
[1738178808126,20.0,223.3,223.18,0.67189295]
[1738178808298,1.21497471,223.29,223.18,0.67201]
[1738178808499,1.21497471,223.29,223.17,53.26]
[1738178808720,34.40227187,223.24,223.16,34.27678187]
[1738178808931,0.03,223.21,223.14,34.27678187]
[1738178809119,20.03,223.21,223.14,34.27678187]
[1738178809322,0.83850471,223.2,223.14,34.27678187]
[1738178809999,0.03,223.21,223.14,34.27678187]
[1738178810195,0.86850471,223.21,223.14,34.27678187]
[1738178810422,0.82447,223.2,223.11,34.27678187]
[1738178810632,34.27678187,223.14,223.05,34.27678187]
[1738178810795,0.83850471,223.13,223.05,34.27678187]
[1738178811230,0.83850471,223.13,223.07,34.27678187]
[1738178811431,0.83850471,223.15,223.07,34.27678187]
[1738178811749,0.37647,223.11,223.03,34.27678187]
[1738178811935,0.37647,223.09,222.99,34.27678187]
[1738178812134,0.83850471,223.08,222.99,34.27678187]
[1738178812307,0.83850471,223.08,223.01,34.27678187]
[1738178812906,0.83850471,223.08,222.98,0.67238504]
[1738178812907,0.83850471,223.08,223.03,34.27678187]
[1738178813121,0.83850471,223.11,223.05,34.27678187]
[1738178813340,0.37647,223.1,223.01,34.27678187]
[1738178813540,20.83850471,223.09,223.01,34.27678187]
[1738178813926,0.83850471,223.09,223.03,34.27678187]
[1738178814125,0.83850471,223.1,223.05,34.27678187]
[1738178814338,0.83850471,223.1,223.03,34.27678187]
[1738178814538,0.12549,223.09,223.01,34.27678187]
[1738178814751,0.83850471,223.08,223.01,34.27678187]
[1738178815627,0.83850471,223.08,223.03,34.27678187]
[1738178816023,0.12549,223.06,222.99,34.27678187]
[1738178816222,0.12549,223.06,222.97,0.063]
[1738178816223,0.37647,223.04,222.97,34.33978187]
[1738178816455,0.83850471,223.03,222.97,0.063]
[1738178816633,0.83850471,223.03,222.97,34.33978187]
[1738178817432,0.83850471,223.05,223.01,34.27678187]
[1738178817751,0.37647,223.08,223.01,34.27678187]
[1738178817960,34.72498187,223.1,222.97,34.33978187]
[1738178817961,0.12549,223.04,222.97,34.33978187]
[1738178818251,0.83850471,223.03,222.97,34.33978187]
[1738178818448,0.83850471,223.05,223.01,34.27678187]
[1738178818753,20.83850471,223.07,223.01,34.27678187]
[1738178818930,0.83850471,223.09,223.03,34.27678187]
[1738178819457,0.96399471,223.11,223.05,34.27678187]
[1738178819749,0.83850471,223.11,223.05,34.27678187]
[1738178819954,0.83850471,223.11,223.07,34.27678187]
[1738178820168,0.83850471,223.13,223.09,34.27678187]
[1738178820455,1.28650471,223.19,223.11,34.27678187]
[1738178820660,0.83850471,223.19,223.14,34.27678187]
[1738178820865,0.50196,223.18,223.12,34.27678187]
[1738178821041,0.83850471,223.17,223.12,34.27678187]
[1738178821356,0.83850471,223.2,223.16,34.27678187]
[1738178821733,0.03,223.21,223.18,34.27678187]
[1738178822040,0.03,223.21,223.2,34.27678187]
[1738178822455,0.03,223.21,223.2,34.94871666]
[1738178822748,0.03,223.21,223.2,0.6719342]
[1738178823138,0.03,223.34,223.2,0.6719342]
[1738178823139,0.86850471,223.34,223.2,0.6719342]
[1738178823337,0.03,223.34,223.33,34.27678187]
[1738178824057,0.03,223.34,223.33,38.75438187]
[1738178824285,12.71886978,223.46,223.33,38.75438187]
[1738178824286,0.83850471,223.47,223.37,20.0]
[1738178824443,0.83850471,223.51,223.42,34.27678187]
[1738178824643,34.72398187,223.57,223.42,34.94802329]
[1738178824842,0.83850471,223.56,223.42,34.94802329]
[1738178825053,0.83850471,223.56,223.45,1.0]
[1738178825254,0.86850471,223.58,223.45,0.67117998]
[1738178825454,0.03,223.58,223.45,0.67117998]
[1738178825753,0.03,223.58,223.56,34.27678187]
[1738178826435,0.03,223.58,223.56,34.94769607]
[1738178826951,0.03,223.58,223.56,39.42059607]
[1738178827561,0.03,223.58,223.52,34.27678187]
[1738178827735,20.0,223.56,223.48,34.27678187]
[1738178828069,20.0,223.56,223.38,1.0]
[1738178828070,1.0,223.52,223.43,0.67109144]
[1738178828242,1.0,223.5,223.31,0.67130222]
[1738178828438,0.83850471,223.49,223.31,0.67130222]
[1738178828643,1.0,223.48,223.28,0.67153614]
[1738178828855,0.83850471,223.47,223.28,0.67153614]
[1738178829059,0.83850471,223.47,223.29,4.4784]
[1738178829259,34.27678187,223.49,223.41,34.27678187]
[1738178829448,0.83850471,223.48,223.41,34.27678187]
[1738178829768,34.27678187,223.47,223.39,34.27678187]
[1738178829967,34.27678187,223.53,223.45,34.27678187]
[1738178830143,0.83850471,223.57,223.46,0.67121653]
[1738178830475,0.83850471,223.57,223.4,312.67107539]
[1738178830653,0.03,223.58,223.41,25.776884]
[1738178830859,0.03,223.58,223.42,0.67099042]
[1738178830860,0.86850471,223.58,223.42,0.67099042]
[1738178831166,34.27678187,223.6,223.51,34.27678187]
[1738178831367,0.12549,223.61,223.54,34.27678187]
[1738178831554,34.27678187,223.6,223.52,34.27678187]
[1738178831795,34.27678187,223.58,223.5,34.27678187]
[1738178832068,34.27678187,223.6,223.52,34.27678187]
[1738178832546,0.03,223.52,223.5,34.27678187]
[1738178832749,0.03,223.52,223.46,34.27678187]
[1738178832949,0.03,223.52,223.4,34.27678187]
[1738178832950,34.27678187,223.49,223.4,34.27678187]
[1738178833152,34.27678187,223.49,223.41,0.67128252]
[1738178833581,34.27678187,223.45,223.36,34.27678187]
[1738178833761,34.27678187,223.45,223.37,0.67140312]
[1738178834075,0.12549,223.48,223.38,34.27678187]
[1738178834076,0.4475,223.46,223.38,34.27678187]
[1738178834751,0.25098,223.5,223.38,34.27678187]
[1738178834752,34.27678187,223.49,223.4,34.27678187]
[1738178834957,34.75408187,223.52,223.43,34.27678187]
[1738178835472,34.27678187,223.44,223.37,34.27678187]
[1738178835678,34.27678187,223.46,223.38,0.6714019]
[1738178836056,34.72428187,223.46,223.37,34.27678187]
[1738178836556,0.4474,223.48,223.41,34.27678187]
[1738178836778,34.55776187,223.52,223.43,34.27678187]
[1738178836992,34.75418187,223.52,223.43,34.27678187]
[1738178837282,34.27678187,223.48,223.39,34.27678187]
[1738178837482,34.27678187,223.41,223.32,34.27678187]
[1738178837651,34.27678187,223.35,223.28,0.67153917]
[1738178837984,34.40227187,223.41,223.26,52.18726687]
[1738178837985,34.27678187,223.33,223.26,17.910485]
[1738178838147,34.72448187,223.35,223.27,0.671677]
[1738178838348,34.72448187,223.35,223.22,34.27678187]
[1738178838349,34.27678187,223.31,223.22,34.27678187]
[1738178838584,34.27678187,223.31,223.23,0.67185008]
[1738178838756,34.27678187,223.36,223.23,0.67185008]
[1738178838954,34.27678187,223.36,223.27,34.27678187]
[1738178839458,34.27678187,223.36,223.28,0.67178734]
[1738178839665,34.27678187,223.36,223.28,0.67167489]
[1738178839875,34.40227187,223.38,223.29,34.27678187]
[1738178840178,34.27678187,223.34,223.25,34.27678187]
[1738178840350,0.37647,223.36,223.27,34.27678187]
[1738178840351,34.40227187,223.36,223.27,34.27678187]
[1738178840984,34.27678187,223.36,223.27,34.27678187]
[1738178841154,0.4476,223.37,223.25,34.27678187]
[1738178841155,34.27678187,223.34,223.25,34.27678187]
[1738178841360,34.40227187,223.36,223.27,34.27678187]
[1738178841573,34.27678187,223.38,223.29,34.27678187]
[1738178841757,34.27678187,223.36,223.27,34.27678187]
[1738178841974,34.27678187,223.32,223.23,34.27678187]
[1738178842271,0.4478,223.31,223.23,34.27678187]
[1738178842473,0.4478,223.31,223.21,4.4799]
[1738178842474,34.27678187,223.28,223.19,34.27678187]
[1738178842775,0.4478,223.31,223.14,0.67197127]
[1738178842776,34.27678187,223.2,223.14,0.67197127]
[1738178843085,34.27678187,223.2,223.13,0.73515694]
[1738178843285,34.27678187,223.2,223.13,0.063]
[1738178843772,34.27678187,223.2,223.13,0.7351536]
[1738178843979,34.27678187,223.2,223.13,0.063]
[1738178844185,34.27678187,223.22,223.13,34.33978187]
[1738178844366,34.27678187,223.2,223.13,0.063]
[1738178844980,34.65325187,223.14,223.13,0.063]
[1738178845348,34.27678187,223.14,223.13,0.063]
[1738178845668,34.27678187,223.16,223.13,0.063]
[1738178845852,1.5678,223.22,223.13,0.063]
[1738178845853,34.27678187,223.18,223.13,0.063]
[1738178846189,34.27678187,223.2,223.13,0.063]
[1738178846359,34.72478187,223.2,223.13,0.063]
[1738178846668,34.27678187,223.2,223.13,0.73519579]
[1738178846867,34.72478187,223.2,223.13,0.063]
[1738178847068,34.27678187,223.22,223.13,34.33978187]
[1738178847378,34.27678187,223.24,223.15,34.27678187]
[1738178847756,34.27678187,223.24,223.16,0.67208027]
[1738178848378,34.72468187,223.24,223.16,0.6720431]
[1738178848566,34.27678187,223.18,223.13,0.063]
[1738178848879,34.27678187,223.22,223.13,34.33978187]
[1738178849058,34.27678187,223.22,223.14,0.67211016]
[1738178849455,34.27678187,223.2,223.13,0.063]
[1738178849652,34.27678187,223.14,223.13,0.063]
[1738178850276,0.50196,223.19,223.13,0.063]
[1738178850277,34.27678187,223.18,223.13,0.063]
[1738178850460,0.448,223.17,223.13,0.063]
[1738178850656,0.37647,223.13,223.04,34.27678187]
[1738178850862,34.27678187,223.06,223.0,1.6275]
[1738178851080,34.27678187,223.04,222.98,0.6724231]
[1738178851680,34.27678187,223.04,222.97,41.38696129]
[1738178852382,34.72508187,223.06,222.97,41.38696129]
[1738178852686,34.72508187,223.06,222.97,45.87176129]
[1738178852874,34.27678187,223.06,222.98,0.67257731]
[1738178853066,34.27678187,223.08,222.99,34.27678187]
[1738178853268,34.72498187,223.1,223.01,34.27678187]
[1738178853482,34.72498187,223.1,223.01,34.94925325]
[1738178854083,34.27678187,223.06,222.97,41.38687378]
[1738178854586,34.27678187,223.08,223.01,34.27678187]
[1738178854769,34.72498187,223.1,223.01,34.94926143]
[1738178854979,34.27678187,223.07,222.98,0.67248749]
[1738178855487,0.12549,223.01,222.97,0.063]
[1738178855785,0.37647,223.02,222.97,0.063]
[1738178855786,0.12549,222.98,222.97,0.063]
[1738178855975,34.27678187,222.99,222.97,0.063]
[1738178856469,0.57389,222.98,222.97,0.063]
[1738178856670,0.4484,222.98,222.97,0.063]
[1738178856878,34.27678187,223.01,222.97,0.063]
[1738178857079,0.4483,223.02,222.97,0.063]
[1738178857586,34.27678187,223.03,222.97,0.063]
[1738178857793,34.72508187,223.05,222.98,34.27678187]
[1738178857986,0.4483,223.06,222.98,34.94940229]
[1738178858186,22.72508187,223.07,222.98,34.94940229]
[1738178858574,34.27678187,223.11,223.02,34.27678187]
[1738178858901,34.27678187,223.07,223.0,34.27678187]
[1738178859067,34.27678187,223.09,223.01,0.67257224]
[1738178859267,34.27678187,223.11,223.04,34.27678187]
[1738178859564,6.2602,223.17,223.08,34.27678187]
[1738178859565,34.27678187,223.17,223.08,34.27678187]
[1738178859765,34.27678187,223.19,223.1,34.27678187]
[1738178859965,34.72478187,223.17,223.08,34.27678187]
[1738178860191,34.27678187,223.17,223.08,34.27678187]
[1738178860392,34.27678187,223.15,223.08,34.27678187]
[1738178860567,34.27678187,223.17,223.09,5.15467002]
[1738178860891,0.25098,223.21,223.12,34.27678187]
[1738178860892,34.27678187,223.21,223.12,34.27678187]
[1738178861089,34.27678187,223.15,223.07,5.15490181]
[1738178861293,34.27678187,223.11,223.02,35.94308187]
[1738178861494,34.27678187,223.09,223.03,0.67240506]
[1738178861694,34.27678187,223.11,223.03,0.67240506]
[1738178862195,34.27678187,223.09,223.02,1.6663]
[1738178862767,34.27678187,223.09,223.03,0.67245998]
[1738178863000,34.27678187,223.09,223.0,34.27678187]
[1738178863179,34.27678187,223.05,222.99,0.67255748]
[1738178863381,34.27678187,223.05,222.98,6.498]
[1738178863582,34.27678187,223.03,222.97,0.063]
[1738178863882,34.27678187,223.06,222.97,38.82458187]
[1738178864082,34.27678187,223.04,222.97,0.063]
[1738178864386,34.27678187,223.02,222.97,0.063]
[1738178865090,34.27678187,223.09,222.99,34.27678187]
[1738178865287,35.27678187,223.19,222.98,4.4847]
[1738178865288,34.27678187,223.16,223.07,34.27678187]
[1738178865490,0.50196,223.13,223.05,34.27678187]
[1738178865669,34.27678187,223.08,223.0,0.67239032]
[1738178865991,0.37647,223.13,223.0,0.67239032]
[1738178866171,34.27678187,223.11,223.02,34.27678187]
[1738178866374,34.27678187,223.11,223.03,0.67243776]
[1738178866775,0.03,223.14,223.04,34.27678187]
[1738178866974,0.03,223.14,223.1,34.27678187]
[1738178867179,0.03,223.14,223.11,0.6722561]
[1738178867596,0.03,223.14,223.12,34.27678187]
[1738178868576,0.03,223.14,223.1,34.27678187]
[1738178868777,0.03,223.14,223.12,34.27678187]
[1738178869085,34.27678187,223.13,223.07,0.67209842]
[1738178869400,34.27678187,223.09,223.02,0.67244404]
[1738178869589,34.27678187,223.07,223.01,0.063]
[1738178869780,34.27678187,223.09,223.01,0.063]
[1738178870172,34.27678187,223.06,223.01,0.063]
[1738178870378,34.27678187,223.06,223.01,0.73562438]
[1738178870587,34.27678187,223.08,223.01,0.73562438]
[1738178870900,34.72498187,223.08,223.01,0.063]
[1738178871106,34.27678187,223.04,223.01,0.063]
[1738178872010,34.27678187,223.06,223.01,0.063]
[1738178872211,34.52776187,223.02,223.01,0.063]
[1738178872379,34.72498187,223.08,223.01,0.063]